lending/lending_fUSD_20251106
["ID","MTS","AMOUNT","RATE_DAILY","PERIOD"]
[393271750,1762413042174,-600.0,0.000179,6]
[393271751,1762413042183,-380.27666254,0.000179,2]
[393271752,1762413042192,-151.0,0.000179,2]
[393271753,1762413042202,-151.0,0.000179,2]
[393271754,1762413042211,-151.0,0.000179,2]
[393271755,1762413042221,-151.0,0.000179,2]
[393271756,1762413042230,-151.0,0.000179,2]
[393271757,1762413042239,-151.0,0.000179,2]
[393271758,1762413042248,-1204.132596,0.000179,2]
[393271759,1762413042257,-151.0,0.000179,2]
[393271760,1762413042267,-1204.132596,0.000179,2]
[393271761,1762413042276,-151.0,0.000179,2]
[393271762,1762413042285,-151.0,0.000179,2]
[393271763,1762413042296,-151.0,0.000179,2]
[393271764,1762413042309,-151.0,0.000179,2]
[393271765,1762413042318,-1204.132596,0.000179,2]
[393271766,1762413042329,-151.0,0.000179,2]
[393271767,1762413042340,-1204.132596,0.000179,2]
[393271768,1762413042350,-159.507299,0.000179,2]
[393271769,1762413042359,-338.036786,0.000179,2]
[393271770,1762413042368,-338.036786,0.000179,2]
[393271771,1762413042377,-151.0,0.000179,2]
[393271772,1762413042389,-338.036786,0.000179,2]
[393271773,1762413042398,-338.036786,0.000179,2]
[393271774,1762413042408,-151.0,0.000179,2]
[393271775,1762413042418,-151.0,0.000179,2]
[393271776,1762413042428,-151.0,0.000179,2]
[393271777,1762413042438,-151.0,0.000179,2]
[393271778,1762413042448,-383.63524025,0.000179,2]
[393271779,1762413042457,-150.81255791,0.000179,3]
[393271780,1762413042467,-540.88402296,0.000179,3]
[393271781,1762413042477,-151.0,0.000179,2]
[393271782,1762413042488,-151.0,0.000179,2]
[393271783,1762413042498,-151.0,0.000179,2]
[393271784,1762413042510,-5739.95703244,0.000179,2]
[393271785,1762413042520,-10875.05693379,0.000179,2]
[393271786,1762413042530,-177.7806462,0.000179,2]
[393271787,1762413042541,-155.031618,0.00017905,3]
[393271788,1762413042552,-153.5764,0.00017905,3]
[393271789,1762413042561,-152.538091,0.00017905,3]
[393271790,1762413042570,-158.086052,0.00017905,3]
[393271791,1762413042580,-150.212892,0.00017905,3]
[393271792,1762413042588,-154.957072,0.00017905,3]
[393271793,1762413042598,-625.0,0.00017922,2]
[393271794,1762413042607,-500.0,0.00017922,2]
[393271795,1762413042618,-554.73793,0.0001793,2]
[393271796,1762413042627,-166.0,0.00017945,2]
[393271797,1762413042636,-288.0,0.00017957,2]
[393271798,1762413042646,-163.0,0.00017973,2]
[393271799,1762413042655,-328.0,0.00017973,2]
[393271800,1762413042666,-500.0,0.00017973,2]
[393271801,1762413042675,-231.42602229,0.00017973,2]
[393271802,1762413042684,-516.45251666,0.00017973,2]
[393271803,1762413042694,-500.0,0.00017973,2]
[393271804,1762413042703,-164.42716658,0.00017973,2]
[393271805,1762413042712,-500.0,0.00017973,2]
[393271806,1762413042721,-500.0,0.00017973,2]
[393271807,1762413042729,-500.0,0.00017973,2]
[393271808,1762413042738,-500.0,0.00017973,2]
[393271809,1762413042748,-500.0,0.00017973,2]
[393271810,1762413042757,-500.0,0.00017973,2]
[393271811,1762413042767,-500.0,0.00017973,2]
[393271812,1762413042775,-500.0,0.00017973,2]
[393271813,1762413042784,-500.0,0.00017973,2]
[393271814,1762413042793,-500.0,0.00017973,2]
[393271815,1762413042802,-500.0,0.00017973,2]
[393271816,1762413042811,-500.0,0.00017973,2]
[393271817,1762413042820,-500.0,0.00017973,2]
[393271818,1762413042829,-500.0,0.00017973,2]
[393271819,1762413042838,-500.0,0.00017973,2]
[393271820,1762413042847,-351.16553114,0.00017973,2]
[393271821,1762413042856,-459.61733602,0.00017973,2]
[393271822,1762413042865,-500.0,0.00017973,2]
[393271823,1762413042874,-500.0,0.00017973,2]
[393271824,1762413042883,-500.0,0.00017973,2]
[393271825,1762413042893,-511.61246005,0.00017973,2]
[393271826,1762413042902,-504.69553816,0.00017973,2]
[393271827,1762413042911,-178.04792307,0.00017973,2]
[393271828,1762413042919,-500.0,0.00017973,2]
[393271829,1762413042928,-500.0,0.00017973,2]
[393271830,1762413042937,-503.00814931,0.00017973,2]
[393271831,1762413042946,-502.7923194,0.00017973,2]
[393271832,1762413042957,-500.0,0.00017973,2]
[393271833,1762413042966,-501.01307086,0.00017973,2]
[393271834,1762413042976,-176.125161,0.00017973,2]
[393271835,1762413042985,-151.0,0.00017973,2]
[393271836,1762413042995,-151.0,0.00017973,2]
[393271837,1762413043004,-151.0,0.00017973,2]
[393271838,1762413043014,-151.0,0.00017973,2]
[393271839,1762413043023,-151.0,0.00017973,2]
[393271840,1762413043033,-151.0,0.00017973,2]
[393271842,1762413043044,-151.0,0.00017973,2]
[393271844,1762413043052,-189.633908,0.00017973,2]
[393271846,1762413043061,-195.936497,0.00017973,2]
[393271848,1762413043070,-151.0,0.00017973,2]
[393271850,1762413043079,-151.0,0.00017973,2]
[393271852,1762413043088,-151.0,0.00017973,2]
[393271854,1762413043096,-151.0,0.00017973,2]
[393271856,1762413043105,-164.44881,0.00017973,2]
[393271858,1762413043115,-500.0,0.00017982,2]
[393271861,1762413043123,-811.11079061,0.00017984,2]
[393271865,1762413043133,-151.0,0.0001799,2]
[393271868,1762413043142,-151.0,0.0001799,2]
[393271869,1762413043151,-151.0,0.0001799,2]
[393271870,1762413043160,-165.526356,0.0001799,2]
[393271871,1762413043169,-182.865907,0.0001799,2]
[393271872,1762413043178,-151.0,0.0001799,2]
[393271873,1762413043188,-151.0,0.0001799,2]
[393271874,1762413043197,-152.776652,0.0001799,2]
[393271875,1762413043206,-151.0,0.0001799,2]
[393271876,1762413043216,-151.0,0.0001799,2]
[393271877,1762413043225,-206.347297,0.0001799,2]
[393271878,1762413043235,-151.0,0.0001799,2]
[393271879,1762413043244,-153.664023,0.0001799,2]
[393271881,1762413043254,-151.0,0.0001799,2]
[393271883,1762413043264,-440.848578,0.0001799,2]
[393271885,1762413043274,-440.848578,0.0001799,2]
[393271887,1762413043283,-440.848578,0.0001799,2]
[393271889,1762413043293,-440.848578,0.0001799,2]
[393271890,1762413043306,-151.000003,0.0001799,2]
[393271891,1762413043315,-811.11079061,0.0001799,2]
[393271892,1762413043324,-811.11079061,0.0001799,2]
[393271893,1762413043333,-151.0,0.00017991,2]
[393271894,1762413043342,-151.0,0.00017991,2]
[393271895,1762413043351,-500.0,0.00017993,2]
[393271896,1762413043360,-529.90780693,0.00017993,2]
[393271897,1762413043370,-500.0,0.00017993,2]
[393271898,1762413043380,-571.33,0.00017993,2]
[393271899,1762413043389,-634.70667195,0.00017993,2]
[393271900,1762413043400,-500.0,0.00017993,2]
[393271901,1762413043409,-500.0,0.00017993,2]
[393271903,1762413043419,-500.0,0.00017993,2]
[393271904,1762413043428,-500.0,0.00017993,2]
[393271905,1762413043438,-151.0,0.00017993,2]
[393271906,1762413043447,-151.0,0.00017993,2]
[393271907,1762413043456,-151.0,0.00017993,2]
[393271908,1762413043466,-151.0,0.00017993,2]
[393271909,1762413043476,-151.0,0.00017993,2]
[393271910,1762413043485,-774.310818,0.00017993,2]
[393271911,1762413043495,-184.3832,0.00017993,2]
[393271912,1762413043504,-151.78844,0.00017993,2]
[393271913,1762413043515,-151.0,0.00017993,2]
[393271914,1762413043524,-774.310818,0.00017993,2]
[393271915,1762413043534,-184.3832,0.00017993,2]
[393271916,1762413043545,-774.310818,0.00017993,2]
[393271917,1762413043554,-151.0,0.00017993,2]
[393271918,1762413043563,-151.0,0.00017993,2]
[393271919,1762413043574,-184.3832,0.00017993,2]
[393271920,1762413043583,-774.310818,0.00017993,2]
[393271921,1762413043593,-151.0,0.00017993,2]
[393271922,1762413043603,-152.599481,0.00017993,2]
[393271923,1762413043613,-184.3832,0.00017993,2]
[393271924,1762413043778,-500.0,0.00017993,2]
[393271925,1762413043790,-151.0,0.00017993,2]
[393271926,1762413043801,-156.131784,0.00017993,2]
[393271927,1762413043810,-151.0,0.00017993,2]
[393271928,1762413043820,-157.562841,0.00017993,2]
[393271929,1762413043829,-154.061849,0.00017993,2]
[393271930,1762413043840,-154.061849,0.00017993,2]
[393271931,1762413043851,-154.061849,0.00017993,2]
[393271932,1762413043860,-154.061849,0.00017993,2]
[393271933,1762413043870,-151.0,0.00017993,2]
[393271935,1762413043880,-151.0,0.00017993,2]
[393271937,1762413043889,-151.0,0.00017993,2]
[393271938,1762413043899,-151.0,0.00017993,2]
[393271939,1762413043908,-151.0,0.00017993,2]
[393271940,1762413043918,-151.0,0.00017993,2]
[393271941,1762413043927,-151.0,0.00017993,2]
[393271942,1762413043936,-151.0,0.00017993,2]
[393271943,1762413043945,-157.196588,0.00017993,2]
[393271944,1762413043955,-151.0,0.00017993,2]
[393271945,1762413043964,-151.0,0.00017993,2]
[393271947,1762413043975,-151.0,0.00017993,2]
[393271949,1762413043985,-500.0,0.00017993,2]
[393271951,1762413043995,-500.0,0.00017993,2]
[393271953,1762413044003,-666.0,0.00017993,2]
[393271954,1762413044013,-296.87113101,0.00017993,2]
[393271955,1762413044022,-353061.4150332,0.00017994,2]
[393271956,1762413044032,-9363.2499508,0.00017994,2]
[393271957,1762413044042,-151.0,0.00017994,2]
[393271958,1762413044052,-151.0,0.00017994,2]
[393271959,1762413044062,-151.0,0.00017994,2]
[393271960,1762413044071,-151.0,0.00017994,2]
[393271961,1762413044080,-158.658734,0.00017994,2]
[393271962,1762413044091,-151.0,0.00017994,2]
[393271963,1762413044101,-282.563176,0.00017994,2]
[393271964,1762413044111,-151.0,0.00017994,2]
[393271965,1762413044121,-151.0,0.00017994,2]
[393271966,1762413044130,-162.119014,0.00017994,2]
[393271967,1762413044140,-151.0,0.00017994,2]
[393271968,1762413044149,-151.0,0.00017994,2]
[393271969,1762413044158,-292.272005,0.00017994,2]
[393271970,1762413044168,-151.0,0.00017994,2]
[393271971,1762413044178,-169.69964,0.00017994,2]
[393271972,1762413044187,-151.0,0.00017994,2]
[393271973,1762413044196,-151.0,0.00017994,2]
[393271974,1762413044205,-151.0,0.00017994,2]
[393271975,1762413044215,-151.0,0.00017994,2]
[393271976,1762413044224,-151.0,0.00017994,2]
[393271977,1762413044234,-151.0,0.00017994,2]
[393271978,1762413044243,-151.0,0.00017994,2]
[393271979,1762413044253,-151.0,0.00017994,2]
[393271980,1762413044262,-151.0,0.00017994,2]
[393271981,1762413044271,-151.878716,0.00017994,2]
[393271982,1762413044280,-151.0,0.00017994,2]
[393271983,1762413044290,-163.790292,0.00017994,2]
[393271984,1762413044304,-154.960781,0.00017994,2]
[393271985,1762413044313,-151.0,0.00017994,2]
[393271986,1762413044322,-151.523274,0.00017994,2]
[393271987,1762413044332,-151.0,0.00017994,2]
[393271988,1762413044342,-324.533751,0.00017994,2]
[393271989,1762413044351,-151.0,0.00017994,2]
[393271990,1762413044361,-324.533751,0.00017994,2]
[393271991,1762413044372,-324.533751,0.00017994,2]
[393271992,1762413044381,-324.533751,0.00017994,2]
[393271993,1762413044390,-151.0,0.00017994,2]
[393271994,1762413044400,-151.0,0.00017994,2]
[393271995,1762413044411,-157.071528,0.00017994,2]
[393271996,1762413044421,-151.0,0.00017994,2]
[393271997,1762413044430,-151.0,0.00017994,2]
[393271998,1762413044439,-151.0,0.00017994,2]
[393271999,1762413044449,-151.0,0.00017994,2]
[393272000,1762413044458,-278.008453,0.00017994,2]
[393272001,1762413044467,-151.0,0.00017994,2]
[393272002,1762413044476,-151.0,0.00017994,2]
[393272003,1762413044486,-151.0,0.00017994,2]
[393272004,1762413044495,-151.0,0.00017994,2]
[393272005,1762413044504,-168.084633,0.00017994,2]
[393272006,1762413044513,-159.614197,0.00017994,2]
[393272007,1762413044522,-215.419892,0.00017994,2]
[393272008,1762413044531,-151.0,0.00017994,2]
[393272009,1762413044541,-151.0,0.00017994,2]
[393272010,1762413044551,-151.0,0.00017994,2]
[393272011,1762413044560,-151.0,0.00017994,2]
[393272012,1762413044569,-239.397665,0.00017994,2]
[393272013,1762413044578,-151.0,0.00017994,2]
[393272014,1762413044587,-175.620212,0.00017994,2]
[393272015,1762413044596,-152.008862,0.00017994,2]
[393272016,1762413044605,-151.0,0.00017994,2]
[393272017,1762413044615,-163.152806,0.00017994,2]
[393272018,1762413044624,-159.364215,0.00017994,2]
[393272019,1762413044633,-151.0,0.00017994,2]
[393272020,1762413044642,-151.0,0.00017994,2]
[393272021,1762413044651,-194.969871,0.00017994,2]
[393272022,1762413044661,-151.0,0.00017994,2]
[393272023,1762413044670,-151.0,0.00017994,2]
[393272024,1762413044679,-151.0,0.00017994,2]
[393272025,1762413044689,-151.0,0.00017994,2]
[393272026,1762413044699,-151.0,0.00017994,2]
[393272027,1762413044708,-180.000478,0.00017994,2]
[393272028,1762413044718,-151.0,0.00017994,2]
[393272029,1762413044728,-151.0,0.00017994,2]
[393272030,1762413044738,-151.0,0.00017994,2]
[393272031,1762413044747,-151.0,0.00017994,2]
[393272032,1762413044757,-151.0,0.00017994,2]
[393272033,1762413044766,-168.552648,0.00017994,2]
[393272034,1762413044776,-199.352254,0.00017994,2]
[393272035,1762413044787,-199.352254,0.00017994,2]
[393272036,1762413044797,-202.32731,0.00017994,2]
[393272037,1762413044808,-199.352254,0.00017994,2]
[393272038,1762413044817,-199.352254,0.00017994,2]
[393272039,1762413044826,-151.0,0.00017994,2]
[393272040,1762413044835,-151.0,0.00017994,2]
[393272041,1762413044845,-161.593414,0.00017994,2]
[393272042,1762413044855,-151.0,0.00017994,2]
[393272043,1762413044864,-151.0,0.00017994,2]
[393272044,1762413044874,-151.0,0.00017994,2]
[393272045,1762413044883,-331.981782,0.00017994,2]
[393272046,1762413044893,-301.419213,0.00017994,2]
[393272047,1762413044904,-331.981782,0.00017994,2]
[393272048,1762413044913,-331.981782,0.00017994,2]
[393272049,1762413044923,-151.0,0.00017994,2]
[393272050,1762413044932,-151.0,0.00017994,2]
[393272051,1762413044942,-331.981782,0.00017994,2]
[393272052,1762413044952,-381.153874,0.00017994,2]
[393272053,1762413044962,-381.153874,0.00017994,2]
[393272054,1762413044972,-381.153874,0.00017994,2]
[393272055,1762413044983,-381.153874,0.00017994,2]
[393272056,1762413044995,-151.0,0.00017994,2]
[393272057,1762413045004,-151.0,0.00017994,2]
[393272058,1762413045014,-151.0,0.00017994,2]
[393272059,1762413045023,-151.0,0.00017994,2]
[393272060,1762413045032,-163.906578,0.00017994,2]
[393272061,1762413045042,-151.0,0.00017994,2]
[393272062,1762413045053,-162.258228,0.00017994,2]
[393272063,1762413045062,-165.228689,0.00017994,2]
[393272064,1762413045071,-165.173443,0.00017994,2]
[393272065,1762413045080,-440.848578,0.00017994,2]
[393272066,1762413045089,-440.848578,0.00017994,2]
[393272067,1762413045098,-440.848578,0.00017994,2]
[393272068,1762413045108,-440.848578,0.00017994,2]
[393272069,1762413045120,-151.0,0.00017994,2]
[393272070,1762413045129,-151.0,0.00017994,2]
[393272071,1762413045138,-151.0,0.00017994,2]
[393272072,1762413045147,-151.0,0.00017994,2]
[393272073,1762413045156,-295.865334,0.00017994,2]
[393272074,1762413045166,-1204.132596,0.00017994,2]
[393272075,1762413045176,-151.0,0.00017994,2]
[393272076,1762413045185,-1204.132596,0.00017994,2]
[393272077,1762413045195,-151.0,0.00017994,2]
[393272078,1762413045204,-153.934286,0.00017994,2]
[393272079,1762413045214,-151.0,0.00017994,2]
[393272080,1762413045223,-151.0,0.00017994,2]
[393272081,1762413045232,-1204.132596,0.00017994,2]
[393272082,1762413045242,-161.181508,0.00017994,2]
[393272083,1762413045252,-1204.132596,0.00017994,2]
[393272084,1762413045261,-338.036786,0.00017994,2]
[393272085,1762413045270,-338.036786,0.00017994,2]
[393272086,1762413045280,-151.0,0.00017994,2]
[393272087,1762413045290,-338.036786,0.00017994,2]
[393272088,1762413045302,-338.036786,0.00017994,2]
[393272089,1762413045312,-151.0,0.00017994,2]
[393272090,1762413045322,-151.0,0.00017994,2]
[393272091,1762413045332,-151.0,0.00017994,2]
[393272092,1762413045342,-270.284275,0.00017994,2]
[393272093,1762413045351,-151.0,0.00017994,2]
[393272094,1762413045360,-151.0,0.00017994,2]
[393272095,1762413045370,-151.0,0.00017994,2]
[393272096,1762413045381,-151.0,0.00017994,2]
[393272097,1762413045390,-152.076167,0.00017994,2]
[393272098,1762413045400,-151.0,0.00017994,2]
[393272099,1762413045409,-155.625396,0.00017994,2]
[393272100,1762413045419,-151.0,0.00017994,2]
[393272101,1762413045429,-774.310818,0.00017994,2]
[393272102,1762413045438,-184.3832,0.00017994,2]
[393272103,1762413045448,-151.0,0.00017994,2]
[393272104,1762413045457,-774.310818,0.00017994,2]
[393272105,1762413045466,-184.3832,0.00017994,2]
[393272106,1762413045476,-774.310818,0.00017994,2]
[393272107,1762413045485,-151.0,0.00017994,2]
[393272108,1762413045494,-151.0,0.00017994,2]
[393272109,1762413045504,-184.3832,0.00017994,2]
[393272110,1762413045513,-774.310818,0.00017994,2]
[393272111,1762413045523,-153.416407,0.00017994,2]
[393272112,1762413045533,-184.3832,0.00017994,2]
[393272113,1762413045542,-151.0,0.00017994,2]
[393272114,1762413045551,-151.0,0.00017994,2]
[393272115,1762413045560,-154.061849,0.00017994,2]
[393272116,1762413045569,-154.061849,0.00017994,2]
[393272117,1762413045578,-154.061849,0.00017994,2]
[393272118,1762413045588,-154.061849,0.00017994,2]
[393272119,1762413045598,-164.165623,0.00017994,2]
[393272120,1762413045607,-266.930809,0.00017994,2]
[393272121,1762413045616,-152.369643,0.00017994,2]
[393272122,1762413045625,-151.0,0.00017994,2]
[393272123,1762413045635,-151.0,0.00017994,2]
[393272124,1762413045644,-151.0,0.00017994,2]
[393272125,1762413045653,-151.0,0.00017994,2]
[393272126,1762413045662,-192.533483,0.00017994,2]
[393272127,1762413045672,-169.008804,0.00017994,2]
[393272128,1762413045681,-169.008804,0.00017994,2]
[393272129,1762413045691,-151.0,0.00017994,2]
[393272130,1762413045701,-151.0,0.00017994,2]
[393272131,1762413045711,-169.26098,0.00017994,2]
[393272132,1762413045720,-169.008804,0.00017994,2]
[393272133,1762413045730,-151.0,0.00017994,2]
[393272134,1762413045739,-169.008804,0.00017994,2]
[393272135,1762413045749,-151.0,0.00017994,2]
[393272136,1762413045758,-255.211776,0.00017994,2]
[393272137,1762413045768,-151.0,0.00017994,2]
[393272138,1762413045777,-288.0,0.00017994,2]
[393272139,1762413045786,-158.42178585,0.00017997,2]
[393272140,1762413045795,-150.0,0.00017999,2]
[393272141,1762413045804,-152.538091,0.00017999,7]
[393272142,1762413045813,-152.538091,0.00017999,7]
[393272143,1762413045822,-158.086052,0.00017999,7]
[393272144,1762413045832,-150.212892,0.00017999,7]
[393272145,1762413045841,-150.212892,0.00017999,7]
[393272146,1762413045850,-150.212892,0.00017999,7]
[393272147,1762413045859,-154.957072,0.00017999,7]
[393272148,1762413045870,-300.0,0.00017999,2]
[393272149,1762413045888,-666.0,0.00017999,2]
[393272150,1762413045898,-666.0,0.00017999,2]
[393272151,1762413045909,-554.49987742,0.00017999,2]
[393272152,1762413045920,-500.0,0.00017999,2]
[393272153,1762413045929,-500.0,0.00017999,2]
[393272154,1762413045940,-500.0,0.00017999,2]
[393272155,1762413045952,-500.0,0.00017999,2]
[393272156,1762413045962,-500.0,0.00017999,2]
[393272157,1762413045971,-500.0,0.00017999,2]
[393272158,1762413045982,-347.12,0.00017999,2]
[393272159,1762413045992,-571.33,0.00017999,2]
[393272160,1762413046002,-571.33,0.00017999,2]
[393272161,1762413046012,-571.33,0.00017999,2]
[393272162,1762413046022,-571.33,0.00017999,2]
[393272163,1762413046033,-571.33,0.00017999,2]
[393272164,1762413046044,-571.33,0.00017999,2]
[393272165,1762413046054,-571.33,0.00017999,2]
[393272166,1762413046063,-571.33,0.00017999,2]
[393272167,1762413046074,-571.33,0.00017999,2]
[393272168,1762413046083,-571.33,0.00017999,2]
[393272169,1762413046094,-571.33,0.00017999,2]
[393272170,1762413046103,-571.33,0.00017999,2]
[393272171,1762413046111,-571.33,0.00017999,2]
[393272172,1762413046120,-571.33,0.00017999,2]
[393272173,1762413046129,-571.33,0.00017999,2]
[393272174,1762413046139,-571.33,0.00017999,2]
[393272176,1762413046192,-571.33,0.00017999,2]
[393272177,1762413046201,-571.33,0.00017999,2]
[393272178,1762413046211,-571.33,0.00017999,2]
[393272179,1762413046220,-571.49,0.00017999,2]
[393272180,1762413046230,-500.0,0.00017999,2]
[393272181,1762413046239,-500.0,0.00017999,2]
[393272182,1762413046248,-500.0,0.00017999,2]
[393272183,1762413046257,-500.0,0.00017999,2]
[393272184,1762413046266,-500.0,0.00017999,2]
[393272185,1762413046275,-500.0,0.00017999,2]
[393272186,1762413046284,-500.0,0.00017999,2]
[393272187,1762413046293,-500.0,0.00017999,2]
[393272188,1762413046302,-500.0,0.00017999,2]
[393272189,1762413046313,-500.0,0.00017999,2]
[393272190,1762413046326,-500.0,0.00017999,2]
[393272191,1762413046335,-500.0,0.00017999,2]
[393272192,1762413046345,-500.0,0.00017999,2]
[393272193,1762413046354,-500.0,0.00017999,2]
[393272194,1762413046366,-500.0,0.00017999,2]
[393272195,1762413046376,-500.0,0.00017999,2]
[393272196,1762413046385,-541.62569463,0.00017999,2]
[393272197,1762413046396,-500.0,0.00017999,2]
[393272198,1762413046406,-500.0,0.00017999,2]
[393272199,1762413046415,-520.03044088,0.00017999,2]
[393272200,1762413046424,-500.0,0.00017999,2]
[393272201,1762413046434,-500.0,0.00017999,2]
[393272202,1762413046443,-304.89530316,0.00017999,2]
[393272203,1762413046452,-500.0,0.00017999,2]
[393272204,1762413046461,-500.0,0.00017999,2]
[393272205,1762413046471,-307.45218061,0.00017999,2]
[393272206,1762413046480,-892819.04761337,0.00018,2]
[393272207,1762413046716,-385.16926988,0.00018,2]
[393272208,1762413046741,-3828698.31742511,0.00018,2]
[393272209,1762413046751,-261641.3387531,0.00018,2]
[393272210,1762413046846,-43975.6542617,0.00018,2]
[393272211,1762413046858,-507.89571749,0.00018,2]
[393272212,1762413046978,-693.726,0.00017178,2]
[393272213,1762413047068,-5000.0,0.00015914,2]
[393272214,1762413047077,-185.86740717,0.00017031,2]
[393272215,1762413047096,-353.9399762,0.00017031,2]
[393272217,1762413116761,-197.4031703,0.00015091,2]
[393272218,1762413118336,-181.30200253,0.00015091,2]
[393272219,1762413119924,-121.29482717,0.00015091,2]
[393272220,1762413119954,-208.31562116,0.00015091,2]
[393272221,1762413121344,300.0,0.0001509,2]
[393272222,1762413121701,300.0,0.0001509,2]
[393272223,1762413122011,255.0,0.0001509,2]
[393272224,1762413123439,-49.3001612,0.00015091,2]
[393272225,1762413123467,-145.6998388,0.00015091,2]
[393272226,1762413126773,-272.12000065,0.00015091,2]
[393272227,1762413133117,-82.18016055,0.00015091,2]
[393272228,1762413133148,-401.99833089,0.00015091,2]
[393272229,1762413138590,-98.00166911,0.00015091,2]
[393272230,1762413138619,-76.56114083,0.00015091,2]
[393272231,1762413141730,-188.72673113,0.00015091,2]
[393272232,1762413143587,-234.71212804,0.00015091,2]
[393272233,1762413143614,-216.27839881,0.00015091,2]
[393272234,1762413161726,-195.0,0.00015091,2]
[393272235,1762413161748,-322.85329158,0.00015092,2]
[393272236,1762413165567,-232.81635999,0.00015092,2]
[393272238,1762413236774,-205.02034843,0.00015092,2]
[393272239,1762413236796,-27.96736865,0.00015092,2]
[393272240,1762413238854,-247.00997466,0.00015092,2]
[393272241,1762413260604,907.56,7.697e-05,2]
[393272242,1762413260808,907.56,8.086e-05,2]
[393272243,1762413261007,907.56,8.475e-05,2]
[393272244,1762413261243,907.56,8.864e-05,2]
[393272245,1762413261455,907.56,9.254e-05,2]
[393272246,1762413261659,907.56,9.643e-05,2]
[393272247,1762413261855,907.56,0.00010032,2]
[393272248,1762413262052,907.56,0.00010421,2]
[393272249,1762413262245,907.56,0.0001081,2]
[393272250,1762413262453,907.56,0.000112,2]
[393272251,1762413262855,69.41,0.00011589,2]
[393272252,1762413262879,838.15,0.00011589,2]
[393272253,1762413263274,907.56,0.00011978,2]
[393272254,1762413263308,907.56,0.00012367,2]
[393272255,1762413263451,907.56,0.00012757,2]
[393272256,1762413263668,907.56,0.00013146,2]
[393272257,1762413263878,907.56,0.00013535,2]
[393272258,1762413264077,907.56,0.00013924,2]
[393272259,1762413264271,907.56,0.00014313,2]
[393272260,1762413264467,907.56,0.00014703,2]
[393272261,1762413266797,-165.56067966,0.00015092,2]
[393272262,1762413268936,-152.91208825,0.00015092,2]
[393272263,1762413271627,-281.68893878,0.00015092,2]
[393272264,1762413273196,-216.48538416,0.00015092,2]
[393272265,1762413327333,-90.91290915,0.00015092,2]
[393272266,1762413327357,-85.11265669,0.00015092,2]
[393272267,1762413327380,-218.06726765,0.00015092,2]
[393272268,1762413331799,-242.04612664,0.00015092,2]
[393272269,1762413333852,-180.24228509,0.00015092,2]
[393272270,1762413335744,-301.038,0.00015092,2]
[393272271,1762413338211,-172.45303986,0.00015092,2]
[393272272,1762413341167,-265.59730372,0.00015092,2]
[393272273,1762413343982,-264.84200054,0.00015092,2]
[393272274,1762413350550,-484.22782003,0.00015092,2]
[393272275,1762413354338,-186.74251173,0.00015092,2]
[393272276,1762413356612,-221.80777406,0.00015092,2]
[393272277,1762413357931,-388.19222594,0.00015092,2]
[393272278,1762413359469,-259.25212382,0.00015092,2]
[393272279,1762413361516,-221.96915492,0.00015092,2]
[393272280,1762413364478,-423.99,0.00015092,2]